bitfinex-derivatives/quotes_BTCF0:USTF0_20220102
["timestamp","ask_amount","ask_price","bid_price","bid_amount"]
[1641119760474,0.009794,47274.0,47263.0,0.52149012]
[1641119760874,0.01878772,47274.0,47263.0,0.52149012]
[1641119761076,0.01878772,47274.0,47263.0,0.16149251]
[1641119761876,1.96609485,47274.0,47263.0,0.16149251]
[1641119762477,1.98725551,47274.0,47263.0,0.14033567]
[1641119762876,2.17125551,47274.0,47263.0,0.14033567]
[1641119763077,2.17225551,47274.0,47263.0,0.14033567]
[1641119763376,0.18,47267.0,47263.0,0.14033567]
[1641119763575,0.25596,47267.0,47263.0,0.14033567]
[1641119763776,0.001,47264.0,47263.0,0.14033567]
[1641119764182,0.00999372,47264.0,47263.0,0.14033567]
[1641119764384,0.001,47264.0,47263.0,0.14033567]
[1641119764578,0.00899372,47265.0,47260.0,0.35999761]
[1641119764778,0.19499372,47264.0,47260.0,0.35999761]
[1641119765478,0.00899372,47263.0,47260.0,0.35999761]
[1641119766879,0.188,47263.0,47260.0,0.35999761]
[1641119767088,0.00899372,47262.0,47260.0,0.35999761]
[1641119767388,0.00899372,47262.0,47261.0,0.18]
[1641119767693,0.00899372,47262.0,47261.0,0.19202138]
[1641119768090,0.00899372,47262.0,47261.0,0.55201899]
[1641119768689,0.00899372,47267.0,47261.0,0.55201899]
[1641119768889,0.35796834,47271.0,47266.0,0.18]
[1641119769191,0.35796834,47273.0,47266.0,0.18]
[1641119769991,0.35796834,47274.0,47266.0,0.18]
[1641119770193,0.35796834,47274.0,47265.0,0.36005801]
[1641119770393,0.36776234,47274.0,47265.0,0.36005801]
[1641119770892,0.55576234,47274.0,47264.0,0.36005801]
[1641119771496,0.55576234,47274.0,47264.0,0.54005801]
[1641119771695,0.35796834,47273.0,47264.0,0.54005801]
[1641119772294,0.35796834,47273.0,47264.0,0.36005801]
[1641119772497,0.36776234,47274.0,47265.0,0.54005801]
[1641119772796,0.19,47273.0,47265.0,0.54005801]
[1641119773195,0.19,47273.0,47264.0,0.36005801]
[1641119774098,0.36776234,47274.0,47264.0,0.36005801]
[1641119774596,0.35796834,47273.0,47264.0,0.36005801]
[1641119774795,0.35796834,47273.0,47267.0,0.18]
[1641119775195,0.35796834,47273.0,47264.0,0.36005801]
[1641119775596,0.55576234,47274.0,47264.0,0.36005801]
[1641119775796,0.55576234,47274.0,47264.0,0.54005801]
[1641119776195,0.35796834,47273.0,47264.0,0.54005801]
[1641119776695,0.35796834,47273.0,47264.0,0.36005801]
[1641119776897,0.54596834,47273.0,47264.0,0.36005801]
[1641119777100,0.188,47273.0,47263.0,0.18]
[1641119778100,0.08950529,47274.0,47264.0,0.18]
[1641119778900,0.27750529,47274.0,47264.0,0.18]
[1641119780202,0.08950529,47274.0,47264.0,0.18]
[1641119781001,0.08950529,47274.0,47261.0,0.36005801]
[1641119781002,0.27950529,47274.0,47261.0,0.36005801]
[1641119781202,0.27950529,47274.0,47264.0,0.18]
[1641119782101,0.08950529,47274.0,47264.0,0.18]
[1641119782803,0.27850529,47274.0,47264.0,0.18]
[1641119783306,0.35796834,47270.0,47267.0,0.36005801]
[1641119784206,0.00901311,47269.0,47267.0,0.36005801]
[1641119784808,0.19801311,47269.0,47267.0,0.36005801]
[1641119785409,0.00901311,47268.0,47267.0,0.36005801]
[1641119786507,0.00901311,47269.0,47267.0,0.36005801]
[1641119786907,0.20101311,47268.0,47267.0,0.36005801]
[1641119787111,0.29390311,47268.0,47267.0,0.36005801]
[1641119788111,0.45987145,47268.0,47266.0,0.14033567]
[1641119788509,0.00901311,47267.0,47266.0,0.14033567]
[1641119790810,0.19501311,47267.0,47266.0,0.14033567]
[1641119792110,0.00901311,47267.0,47266.0,0.14033567]
[1641119792811,0.19401311,47267.0,47266.0,0.14033567]
[1641119793013,0.790627,47267.0,47266.0,0.14033567]
[1641119793813,0.791627,47267.0,47262.0,0.36005801]
[1641119794014,0.001,47263.0,47262.0,0.36005801]
[1641119794215,0.605627,47267.0,47262.0,0.36005801]
[1641119794614,0.00901311,47263.0,47262.0,0.36005801]
[1641119794815,0.00901311,47266.0,47262.0,0.36005801]
[1641119795016,0.36724118,47266.0,47263.0,0.36005801]
[1641119795615,0.35822807,47266.0,47263.0,0.36005801]
[1641119796315,0.35822807,47267.0,47264.0,0.36005801]
[1641119796815,0.55022807,47267.0,47264.0,0.36005801]
[1641119797617,0.73022807,47267.0,47264.0,0.36005801]
[1641119797818,0.02116418,47265.0,47264.0,0.36005801]
[1641119798020,0.10264418,47265.0,47264.0,0.36005801]
[1641119798821,0.28864418,47265.0,47264.0,0.36005801]
[1641119799020,0.28864418,47265.0,47261.0,0.36005801]
[1641119799921,0.35812848,47264.0,47261.0,0.36005801]
[1641119800522,0.35812848,47265.0,47261.0,0.36005801]
[1641119800924,0.188,47264.0,47261.0,0.36005801]
[1641119801623,0.188,47264.0,47262.0,0.60009668]
[1641119802224,0.09018563,47263.0,47262.0,1.32035142]
[1641119802825,0.27318563,47263.0,47262.0,1.32035142]
[1641119803226,0.183,47263.0,47260.0,1.86024621]
[1641119803826,0.35911475,47262.0,47260.0,1.86024621]
[1641119804826,0.54211475,47262.0,47260.0,1.86024621]
[1641119805728,0.54211475,47262.0,47261.0,0.14033567]
[1641119806230,0.35911475,47262.0,47261.0,0.14033567]
[1641119806731,0.35911475,47262.0,47261.0,0.68023046]
[1641119807031,0.54311475,47262.0,47261.0,0.68023046]
[1641119808032,0.184,47262.0,47261.0,2.00058188]
[1641119808932,0.358,47262.0,47261.0,2.01260452]
[1641119809333,0.71711475,47262.0,47261.0,0.6922531]
[1641119809937,0.71711475,47262.0,47261.0,0.8722531]
[1641119810134,0.358,47262.0,47261.0,0.68023046]
[1641119810337,0.35911475,47264.0,47261.0,0.69225301]
[1641119810535,0.35911475,47264.0,47261.0,0.68023046]
[1641119810836,0.00901399,47263.0,47261.0,0.68023046]
[1641119811037,0.36812874,47263.0,47261.0,2.00249961]
[1641119811437,0.00901399,47262.0,47261.0,2.00249961]
[1641119811636,0.00901399,47262.0,47261.0,1.46260482]
[1641119812037,0.00901399,47262.0,47261.0,1.47462736]
[1641119813038,0.17701399,47262.0,47261.0,0.15235821]
[1641119814139,0.00901399,47262.0,47261.0,0.15235821]
[1641119814544,0.00901399,47263.0,47261.0,0.15235821]
[1641119814742,0.35911475,47264.0,47262.0,0.18]
[1641119814941,0.35911475,47264.0,47262.0,0.19202254]
[1641119815343,0.35911475,47264.0,47262.0,1.50224072]
[1641119816052,0.35911475,47265.0,47263.0,1.32224072]
[1641119817058,0.53411475,47265.0,47263.0,1.32224072]
[1641119817454,0.35911475,47264.0,47262.0,1.50224072]
[1641119818557,0.35911475,47265.0,47263.0,1.32224072]
[1641119818857,0.35911475,47265.0,47264.0,0.18]
[1641119819255,0.59787706,47266.0,47264.0,0.18]
[1641119819655,0.59787706,47266.0,47262.0,1.32224072]
[1641119819858,0.59787706,47266.0,47265.0,0.18]
[1641119820055,0.59787706,47266.0,47262.0,1.32224072]
[1641119820056,0.59787706,47266.0,47263.0,1.32224072]
[1641119820255,0.59787706,47266.0,47265.0,0.18]
[1641119820858,0.59787706,47267.0,47265.0,0.18]
[1641119821058,0.174,47266.0,47265.0,0.18]
[1641119822461,0.59787706,47268.0,47265.0,0.32033567]
[1641119823062,0.79287706,47268.0,47265.0,0.32033567]
[1641119824367,0.59787706,47268.0,47265.0,0.32033567]
[1641119824566,0.59787706,47268.0,47266.0,0.01202127]
[1641119824976,0.74687706,47268.0,47266.0,0.01202127]
[1641119825975,0.149,47268.0,47266.0,0.01202127]
[1641119826377,0.59787706,47272.0,47266.0,0.01202127]
[1641119826577,0.59787706,47272.0,47270.0,0.18]
[1641119826776,0.59787706,47272.0,47271.0,0.14033567]
[1641119826974,0.178,47272.0,47271.0,0.14033567]
[1641119827975,0.77587706,47272.0,47271.0,0.67864874]
[1641119828177,0.59787706,47272.0,47271.0,0.67864874]
[1641119828375,0.59787706,47272.0,47271.0,0.85864874]
[1641119828777,0.59787706,47272.0,47271.0,0.67864874]
[1641119828977,0.68387706,47272.0,47271.0,0.67864874]
[1641119829378,0.086,47272.0,47271.0,0.67864874]
[1641119829778,0.09501374,47272.0,47271.0,0.67864874]
[1641119830277,0.00901374,47272.0,47271.0,0.67864874]
[1641119831077,0.20401374,47272.0,47271.0,0.67864874]
[1641119831480,0.20401374,47272.0,47271.0,0.85864874]
[1641119831881,0.20401374,47272.0,47271.0,0.67864874]
[1641119832080,0.20401374,47272.0,47271.0,0.85864874]
[1641119832281,0.00901374,47272.0,47271.0,0.85864874]
[1641119833082,0.17401374,47272.0,47271.0,0.85864874]
[1641119834382,0.00901374,47272.0,47271.0,0.85864874]
[1641119834984,0.54426901,47272.0,47271.0,1.01564874]
[1641119835585,0.18401374,47272.0,47271.0,1.01564874]
[1641119835784,0.18401374,47272.0,47271.0,1.03680127]
[1641119836185,0.18401374,47272.0,47271.0,1.04882152]
[1641119836384,0.00901374,47272.0,47271.0,0.89182152]
[1641119836584,0.00901374,47272.0,47271.0,0.87980127]
[1641119836887,0.00901374,47273.0,47271.0,0.87980127]
[1641119837184,0.09001374,47272.0,47271.0,0.88880127]
[1641119837585,0.09001374,47272.0,47271.0,1.06880127]
[1641119838185,0.09001374,47272.0,47271.0,0.88880127]
[1641119838387,0.00901374,47272.0,47271.0,0.87980127]
[1641119838585,0.00901374,47272.0,47271.0,0.69980127]
[1641119838785,0.00901374,47272.0,47271.0,0.87980127]
[1641119838986,0.079,47272.0,47271.0,1.06780127]
[1641119839287,0.08801374,47272.0,47271.0,1.06780127]
[1641119839488,0.08801374,47272.0,47271.0,0.88780127]
[1641119839887,0.08801374,47272.0,47271.0,1.06780127]
[1641119840886,0.00901374,47272.0,47271.0,0.69980127]
[1641119841086,0.08601374,47272.0,47271.0,1.06880127]
[1641119841386,0.077,47272.0,47271.0,1.06880127]
[1641119841587,0.077,47272.0,47271.0,0.88880127]
[1641119841886,0.08601374,47272.0,47271.0,1.06880127]
[1641119842387,0.00901374,47272.0,47271.0,0.87980127]
[1641119842887,0.00901374,47276.0,47271.0,0.87980127]
[1641119843088,0.36025527,47277.0,47274.0,0.18]
[1641119843488,0.36025527,47278.0,47274.0,0.18]
[1641119844489,0.36025527,47278.0,47276.0,0.36015601]
[1641119844889,0.36025527,47278.0,47277.0,0.14033567]
[1641119845090,0.55125527,47278.0,47277.0,0.14033567]
[1641119846390,0.36025527,47278.0,47277.0,0.14033567]
[1641119846991,0.47625527,47278.0,47277.0,0.26533567]
[1641119848394,0.59787706,47280.0,47277.0,0.26533567]
[1641119848395,0.59787706,47279.0,47277.0,0.14033567]
[1641119848994,0.78987706,47279.0,47277.0,0.14033567]
[1641119849993,0.59787706,47278.0,47277.0,0.14033567]
[1641119850994,0.78887706,47278.0,47277.0,0.26633567]
[1641119851395,0.191,47278.0,47277.0,0.26633567]
[1641119852395,0.59787706,47278.0,47277.0,0.14033567]
[1641119852994,0.78387706,47278.0,47277.0,0.14033567]
[1641119854997,0.78287706,47278.0,47277.0,0.14033567]
[1641119856600,0.59787706,47278.0,47277.0,0.14033567]
[1641119857000,0.78587706,47278.0,47277.0,0.14033567]
[1641119858314,0.59787706,47278.0,47277.0,0.14033567]
[1641119858514,0.6068903,47278.0,47277.0,0.14033567]
[1641119859114,0.7938903,47278.0,47277.0,0.14033567]
[1641119860415,0.6068903,47278.0,47277.0,0.14033567]
[1641119860619,0.09917647,47278.0,47277.0,0.50049168]
[1641119861214,0.28717647,47278.0,47277.0,0.50049168]
[1641119862020,1.12243592,47278.0,47277.0,0.14033567]
[1641119862418,0.93443592,47278.0,47277.0,0.14033567]
[1641119863119,1.12243592,47278.0,47277.0,0.14033567]
[1641119863418,0.28717647,47278.0,47277.0,0.50049168]
[1641119864418,0.09917647,47278.0,47277.0,0.50049168]
[1641119865220,0.28717647,47278.0,47277.0,0.50049168]
[1641119866522,0.09917647,47278.0,47277.0,0.50049168]
[1641119866721,0.09917647,47278.0,47277.0,0.14033567]
[1641119866722,0.93443592,47278.0,47277.0,0.14033567]
[1641119867121,1.12143592,47278.0,47277.0,0.14033567]
[1641119867624,0.28617647,47278.0,47277.0,0.71699135]
[1641119868427,0.09917647,47278.0,47277.0,0.71699135]
[1641119868926,0.09917647,47278.0,47277.0,1.55849967]
[1641119869224,0.28417647,47278.0,47277.0,1.55849967]
[1641119870426,0.09917647,47278.0,47277.0,1.55849967]
[1641119871227,0.28517647,47278.0,47277.0,1.55849967]
[1641119871427,0.46517647,47278.0,47277.0,1.418164]
[1641119871627,0.48633453,47278.0,47272.0,1.32177757]
[1641119871827,0.18,47274.0,47272.0,1.32177757]
[1641119872028,0.18,47274.0,47271.0,0.14033567]
[1641119872225,0.001,47272.0,47271.0,0.14033567]
[1641119872428,0.001,47272.0,47268.0,1.32177757]
[1641119872627,0.001,47269.0,47268.0,1.32177757]
[1641119872829,0.07331,47269.0,47268.0,1.32177757]
[1641119873230,0.27332324,47269.0,47268.0,1.32177757]
[1641119873431,0.27332324,47269.0,47265.0,1.46211324]
[1641119873734,0.001,47266.0,47265.0,1.46211324]
[1641119874131,0.59951647,47266.0,47265.0,1.46211324]
[1641119874330,0.60852971,47266.0,47265.0,1.46211324]
[1641119875131,0.80552971,47266.0,47265.0,1.46211324]
[1641119876031,0.20701324,47266.0,47265.0,1.46211324]
[1641119876234,0.20701324,47266.0,47265.0,0.14033567]
[1641119876432,0.01001324,47266.0,47265.0,0.14033567]
[1641119877232,0.20101324,47266.0,47265.0,0.14033567]
[1641119878534,0.01001324,47266.0,47265.0,0.14033567]
[1641119879236,0.20001324,47266.0,47265.0,0.14033567]
[1641119879837,1.0378251,47266.0,47265.0,0.14033567]
[1641119880436,0.8478251,47266.0,47265.0,0.14033567]
[1641119881136,1.0388251,47266.0,47265.0,0.14033567]
[1641119882440,0.8478251,47266.0,47265.0,0.14033567]
[1641119882639,0.01001324,47266.0,47265.0,0.14033567]
[1641119883139,0.19901324,47266.0,47265.0,0.14033567]
[1641119884541,0.01001324,47266.0,47265.0,0.14033567]
[1641119884743,0.01001324,47266.0,47264.0,0.84084183]
[1641119884940,0.001,47265.0,47264.0,0.84084183]
[1641119885238,0.01001324,47265.0,47264.0,0.84084183]
[1641119887044,0.01001324,47265.0,47263.0,1.35521552]
[1641119887242,0.001,47264.0,47263.0,1.35521552]
[1641119887643,0.01001324,47264.0,47263.0,1.35521552]
[1641119888242,0.01001324,47264.0,47263.0,0.51437369]
[1641119889143,0.19701324,47264.0,47263.0,0.51437369]
[1641119890444,0.01001324,47264.0,47263.0,0.51437369]
[1641119891144,0.18801324,47264.0,47263.0,0.51437369]
[1641119891343,0.18801324,47264.0,47263.0,0.52639562]
[1641119891543,0.18801324,47264.0,47263.0,0.01202193]
[1641119892046,0.18801324,47264.0,47262.0,0.14033567]
[1641119892245,0.18701324,47264.0,47262.0,0.14033567]
[1641119892445,0.00901324,47264.0,47263.0,1.35565595]
[1641119892645,0.001,47264.0,47263.0,1.35565595]
[1641119893248,0.176,47264.0,47263.0,1.35565595]
[1641119894550,0.001,47264.0,47263.0,1.35565595]
[1641119895247,0.176,47264.0,47263.0,1.35565595]
[1641119895549,0.176,47264.0,47263.0,0.51500853]
[1641119896550,0.001,47264.0,47263.0,0.51500853]
[1641119897352,0.176,47264.0,47263.0,0.51500853]
[1641119897953,0.176,47264.0,47263.0,0.5270304]
[1641119898154,0.176,47264.0,47263.0,0.51500853]
[1641119898554,0.001,47264.0,47263.0,0.51500853]
[1641119898859,0.001,47264.0,47263.0,0.5270304]
[1641119899055,0.001,47264.0,47263.0,0.51500853]
[1641119899255,0.177,47264.0,47263.0,0.51500853]
[1641119899456,0.177,47264.0,47263.0,0.52703041]
[1641119899759,0.177,47264.0,47263.0,1.36767678]
[1641119900556,0.001,47264.0,47263.0,1.3556549]
[1641119900856,0.001,47264.0,47263.0,1.36767677]
[1641119901257,0.178,47264.0,47263.0,1.3556549]
[1641119902558,0.001,47264.0,47263.0,0.51500853]
[1641119903157,0.001,47264.0,47263.0,1.11550017]
[1641119903457,0.194,47264.0,47263.0,1.11550017]
[1641119903959,0.194,47264.0,47263.0,0.60049164]
[1641119904660,0.001,47264.0,47263.0,0.51500853]
[1641119905358,0.194,47264.0,47263.0,0.51500853]
[1641119906558,0.001,47264.0,47263.0,0.51500853]
[1641119907361,0.194,47264.0,47263.0,0.51500853]
[1641119907962,0.8006426,47264.0,47263.0,0.51500853]
[1641119908562,0.6076426,47264.0,47263.0,0.51500853]
[1641119909267,0.7916426,47264.0,47263.0,0.51500853]
[1641119910565,0.5986275,47264.0,47263.0,0.51500853]
[1641119911067,0.60764222,47264.0,47263.0,0.51500853]
[1641119911369,0.79964222,47264.0,47263.0,0.51500853]
[1641119911569,0.20201472,47264.0,47263.0,0.51500853]
[1641119912372,0.79964222,47264.0,47263.0,0.51500853]
[1641119912567,0.60764222,47264.0,47263.0,0.51500853]
[1641119913368,0.80364222,47264.0,47263.0,0.51500853]
[1641119914678,0.60764222,47264.0,47263.0,0.51500853]
[1641119915372,0.79964222,47264.0,47263.0,0.51500853]
[1641119916572,0.60764222,47264.0,47263.0,0.51500853]
[1641119917375,0.77064222,47264.0,47263.0,0.51500853]
[1641119917577,0.17301472,47264.0,47263.0,0.51500853]
[1641119919275,0.33401472,47264.0,47263.0,0.51500853]
[1641119920575,0.01001472,47264.0,47263.0,0.51500853]
[1641119921293,0.17101472,47264.0,47263.0,0.51500853]
[1641119922594,0.01001472,47264.0,47263.0,0.51500853]
[1641119923294,0.17701472,47264.0,47263.0,0.51500853]
[1641119923695,0.17701472,47264.0,47263.0,0.52703024]
[1641119924394,0.17701472,47264.0,47263.0,0.51500853]
[1641119924596,0.01001472,47264.0,47263.0,0.51500853]
[1641119924996,0.36908863,47264.0,47263.0,1.83738211]
[1641119925296,0.54608863,47264.0,47263.0,1.83738211]
[1641119926698,0.36908863,47264.0,47263.0,1.83738211]
[1641119927297,0.17801472,47264.0,47263.0,1.83738211]
[1641119927500,0.77564222,47264.0,47263.0,0.51500853]
[1641119928698,0.60764222,47264.0,47263.0,0.51500853]
[1641119929301,0.76264222,47264.0,47263.0,0.51500853]
[1641119930706,0.60764222,47264.0,47263.0,0.51500853]
[1641119931306,0.78064222,47264.0,47263.0,0.51500853]
[1641119932005,0.27320082,47264.0,47263.0,0.51500853]
[1641119932606,0.10020082,47264.0,47263.0,0.51500853]
[1641119933008,0.10020082,47264.0,47263.0,0.71616473]
[1641119933407,0.01001472,47264.0,47263.0,0.71616473]
[1641119933608,0.60823294,47264.0,47263.0,0.72818648]
[1641119934508,0.01001472,47264.0,47263.0,0.72818648]
[1641119934908,0.01001472,47264.0,47263.0,0.54818648]
[1641119936112,0.36910959,47264.0,47263.0,0.54818648]
[1641119936712,0.01001472,47264.0,47263.0,0.54818648]
[1641119937112,0.01001472,47264.0,47263.0,0.53616473]
[1641119937312,0.36910959,47264.0,47263.0,0.53616473]
[1641119937512,0.36910959,47264.0,47263.0,0.5481866]
[1641119938114,0.36910959,47264.0,47263.0,0.7281866]
[1641119938714,0.01001472,47264.0,47263.0,0.7281866]
[1641119941416,0.01001472,47264.0,47263.0,0.5481866]
[1641119942717,0.01001472,47264.0,47263.0,0.7281866]
[1641119944419,0.01001472,47264.0,47263.0,0.5481866]
[1641119944620,0.01001472,47264.0,47263.0,0.7281866]
[1641119946523,0.01001472,47264.0,47263.0,0.5481866]
[1641119947324,0.01001472,47264.0,47263.0,0.7281866]
[1641119947524,0.01001472,47264.0,47263.0,0.5481866]
[1641119947726,0.01001472,47264.0,47263.0,0.7281866]
[1641119952735,0.01001472,47264.0,47263.0,0.86852227]
[1641119953335,0.17001472,47264.0,47263.0,0.86852227]
[1641119953934,0.17001472,47264.0,47263.0,0.68852227]
[1641119954134,0.17001472,47264.0,47263.0,0.86852227]
[1641119954739,0.01001472,47264.0,47263.0,0.86852227]
[1641119955242,0.01001472,47264.0,47263.0,0.74852227]
[1641119955441,0.01001472,47264.0,47263.0,0.86852227]
[1641119956145,0.01001472,47264.0,47263.0,0.68852227]
[1641119963045,0.01001472,47264.0,47263.0,0.86852227]
[1641119963246,0.01001472,47264.0,47263.0,0.68852227]
[1641119963445,0.01001472,47264.0,47263.0,0.86852227]
[1641119963747,0.01001472,47264.0,47263.0,0.68852227]
[1641119964946,0.01001472,47264.0,47263.0,0.86852227]
[1641119966450,0.00901472,47264.0,47263.0,0.86852227]
[1641119966950,0.00901472,47266.0,47263.0,0.68852227]
[1641119967151,0.00901472,47266.0,47263.0,0.86852227]
[1641119967352,0.00901472,47264.0,47263.0,0.86852227]
[1641119967751,0.00901472,47266.0,47263.0,0.86852227]
[1641119968153,0.00901472,47264.0,47263.0,0.86852227]
[1641119968554,0.00901472,47265.0,47263.0,0.8565004]
[1641119968754,0.00901472,47264.0,47263.0,0.34149187]
[1641119969152,0.00901472,47264.0,47263.0,0.16149187]
[1641119969352,0.00901472,47266.0,47263.0,0.16149187]
[1641119969555,0.00901472,47264.0,47263.0,0.16149187]
[1641119969955,0.00901472,47265.0,47263.0,0.16149187]
[1641119970154,0.00901472,47264.0,47263.0,0.16149187]
[1641119970653,0.00901472,47264.0,47263.0,1.60260173]
[1641119970853,0.35909487,47265.0,47263.0,1.60260173]
[1641119971153,0.00901472,47264.0,47263.0,1.60260173]
[1641119971753,0.00901472,47265.0,47263.0,1.60260173]
[1641119971954,0.36810959,47265.0,47263.0,0.16149187]
[1641119972355,0.00901472,47264.0,47263.0,0.16149187]
[1641119973057,0.00901472,47264.0,47263.0,1.60260173]
[1641119974358,0.00901472,47264.0,47263.0,0.16149187]
[1641119976361,0.00901472,47264.0,47263.0,1.44949187]
[1641119977460,0.00901472,47267.0,47263.0,1.71782617]
[1641119977662,0.00901472,47267.0,47263.0,0.60982617]
[1641119977861,0.00901472,47264.0,47263.0,0.60982617]
[1641119978064,0.00901472,47264.0,47263.0,1.71782617]
[1641119978262,0.00901472,47267.0,47263.0,1.71782617]
[1641119978462,0.00901472,47267.0,47266.0,1.44263471]
[1641119978863,0.35909487,47268.0,47266.0,1.62263471]
[1641119979063,0.35909487,47268.0,47267.0,0.14033567]
[1641119979864,0.35909487,47269.0,47267.0,0.14033567]
[1641119981267,0.53109487,47269.0,47267.0,0.32033567]
[1641119981664,0.172,47269.0,47267.0,0.32033567]
[1641119981867,0.59821822,47268.0,47267.0,0.32033567]
[1641119983269,0.75621822,47268.0,47267.0,0.32733567]
[1641119984373,0.158,47268.0,47267.0,0.80896896]
[1641119984772,0.59821822,47269.0,47267.0,0.62196896]
[1641119985374,0.76021822,47269.0,47267.0,0.80596896]
[1641119985777,0.76021822,47269.0,47268.0,1.80407532]
[1641119986776,0.59821822,47269.0,47268.0,1.80407532]
[1641119987275,0.75921822,47269.0,47268.0,1.98907532]
[1641119988576,0.75921822,47269.0,47268.0,1.80407532]
[1641119988775,0.59821822,47269.0,47268.0,1.80407532]
[1641119988975,0.09017198,47269.0,47268.0,1.80407532]
[1641119989378,0.23217198,47269.0,47268.0,1.99107532]
[1641119989776,0.142,47269.0,47268.0,1.99107532]
[1641119990677,0.8366785,47270.0,47268.0,1.80407532]
[1641119990880,0.09017198,47269.0,47268.0,1.80407532]
[1641119991278,0.6004953,47269.0,47268.0,0.65663329]
[1641119992678,0.6004953,47269.0,47268.0,0.48163329]
[1641119993280,0.7604953,47269.0,47268.0,0.66663329]
[1641119993483,0.52016897,47269.0,47268.0,0.66663329]
[1641119993880,0.5291823,47269.0,47268.0,0.66663329]
[1641119994782,0.3691823,47269.0,47268.0,0.48163329]
[1641119995382,0.4561823,47269.0,47268.0,0.66963329]
[1641119996897,0.00901333,47269.0,47268.0,1.80369308]
[1641119997301,0.16601333,47269.0,47268.0,1.98969308]
[1641119997701,0.5261823,47269.0,47268.0,1.98969308]
[1641119998603,0.3691823,47269.0,47268.0,0.48163329]
[1641119999402,0.4211823,47269.0,47268.0,0.66963329]
[1641119999802,0.4211823,47269.0,47268.0,0.6816538]
[1641120000005,0.06101333,47269.0,47268.0,2.00371359]
[1641120000604,0.00901333,47269.0,47268.0,1.81571359]
[1641120001205,0.00901333,47269.0,47268.0,1.80369308]
[1641120001403,0.00901333,47269.0,47268.0,1.99669308]
[1641120003308,0.5241823,47269.0,47268.0,0.83763329]
[1641120003506,0.5241823,47269.0,47268.0,0.64463329]
[1641120003811,0.16401333,47269.0,47268.0,0.64463329]
[1641120004809,0.00901333,47269.0,47268.0,0.48163329]
[1641120005310,0.15901333,47269.0,47268.0,0.77896896]
[1641120005512,0.15901333,47269.0,47268.0,0.29733567]
[1641120006112,0.34880733,47269.0,47268.0,0.29733567]
[1641120006313,0.34880733,47269.0,47265.0,1.32205979]
[1641120006510,0.34880733,47269.0,47268.0,0.48163329]
[1641120006712,0.19880733,47269.0,47268.0,0.48163329]
[1641120007314,0.526143,47269.0,47268.0,0.48163329]
[1641120007512,0.61632644,47269.0,47267.0,0.84138362]
[1641120007914,0.00901333,47268.0,47267.0,0.84138362]
[1641120008515,0.09919677,47268.0,47267.0,0.84138362]
[1641120009317,0.28619677,47268.0,47267.0,0.84138362]
[1641120010617,0.09919677,47268.0,47267.0,0.84138362]
[1641120011420,0.28619677,47268.0,47267.0,0.84138362]
[1641120012719,0.09919677,47268.0,47267.0,0.84138362]
[1641120013319,0.28619677,47268.0,47267.0,0.84138362]
[1641120014620,1.12441189,47268.0,47267.0,0.84138362]
[1641120014919,1.11841189,47268.0,47267.0,0.84138362]
[1641120015320,1.30241189,47268.0,47267.0,0.84138362]
[1641120015920,0.46419677,47268.0,47267.0,0.84138362]
[1641120016721,0.28019677,47268.0,47267.0,0.84138362]
[1641120017122,0.28019677,47268.0,47265.0,0.84138362]
[1641120017325,0.46819677,47268.0,47265.0,0.84138362]
[1641120017522,0.01880733,47267.0,47263.0,0.48163329]
[1641120017721,0.01880733,47267.0,47253.0,0.14033567]
[1641120017722,0.18,47264.0,47253.0,0.14033567]
[1641120017922,0.18,47257.0,47256.0,1.32132852]
[1641120018522,0.18901333,47257.0,47256.0,1.32132852]
[1641120019021,0.18901333,47257.0,47253.0,0.14033567]
[1641120019423,0.00901333,47256.0,47254.0,0.01202441]
[1641120021125,0.00901333,47256.0,47253.0,0.14033567]
[1641120021326,0.19101333,47256.0,47249.0,0.1614986]
[1641120021728,0.00901333,47255.0,47250.0,0.0120245]
[1641120023531,0.18,47251.0,47250.0,0.0120245]
[1641120023729,0.40734567,47251.0,47241.0,0.65049459]
[1641120023929,0.18,47242.0,47241.0,0.65049459]
[1641120024333,0.181,47242.0,47241.0,0.65049459]
[1641120024530,0.181,47242.0,47241.0,0.62932792]
[1641120025133,0.19164281,47242.0,47238.0,1.32178535]
[1641120025332,0.001,47239.0,47238.0,1.32178535]
[1641120025532,0.08919,47239.0,47238.0,1.32178535]
[1641120026134,0.09983281,47239.0,47238.0,1.32178535]
[1641120026731,0.09983281,47239.0,47235.0,1.32178535]
[1641120026935,0.18,47236.0,47235.0,1.32178535]
[1641120027531,0.19064281,47236.0,47233.0,1.32178535]
[1641120027934,0.01064281,47235.0,47233.0,1.32178535]
[1641120028233,0.03097168,47234.0,47229.0,0.62932792]
[1641120028433,0.18,47233.0,47223.0,2.53291153]
[1641120028634,0.189794,47234.0,47223.0,1.55481153]
[1641120028833,0.189794,47234.0,47225.0,0.02117384]
[1641120029232,0.01064281,47233.0,47225.0,0.02117384]
[1641120029436,0.18,47231.0,47225.0,0.02117384]
[1641120029652,0.18,47231.0,47228.0,0.14033567]
[1641120030035,0.01064281,47230.0,47228.0,0.14033567]
[1641120031333,0.19764281,47230.0,47228.0,0.14033567]
[1641120032136,0.01064281,47229.0,47228.0,0.14033567]
[1641120033036,0.01064281,47233.0,47228.0,0.14033567]
[1641120033237,0.01064281,47229.0,47228.0,0.48291862]
[1641120033436,0.186,47229.0,47228.0,0.48291862]
[1641120033838,0.19664281,47229.0,47228.0,0.14033567]
[1641120034440,0.19664281,47229.0,47224.0,1.44227089]
[1641120034639,0.18,47225.0,47224.0,1.44227089]
[1641120034837,0.01064281,47229.0,47224.0,1.44227089]
[1641120035037,0.01064281,47229.0,47228.0,0.34258295]
[1641120035238,0.362,47229.0,47228.0,0.34258295]
[1641120035440,0.182,47229.0,47228.0,0.34258295]
[1641120035938,0.182,47229.0,47228.0,0.39999295]
[1641120036340,0.182,47229.0,47228.0,0.05741]
[1641120036639,0.14033567,47230.0,47228.0,0.05741]
[1641120037156,0.14033567,47230.0,47223.0,1.66464444]
[1641120037339,0.32733567,47230.0,47223.0,1.66464444]
[1641120037540,0.32733567,47230.0,47228.0,0.34258295]
[1641120038541,0.9254353,47230.0,47229.0,0.34258295]
[1641120038742,0.7384353,47230.0,47229.0,0.34258295]
[1641120039143,0.7384353,47230.0,47229.0,1.66614166]
[1641120039343,0.9214353,47230.0,47229.0,1.66614166]
[1641120040746,0.7384353,47230.0,47229.0,1.66614166]
[1641120041348,0.9224353,47230.0,47229.0,1.66614166]
[1641120041747,0.32433567,47230.0,47229.0,1.66614166]
[1641120041949,0.41458125,47230.0,47229.0,0.34258295]
[1641120042350,1.24903393,47230.0,47229.0,0.34258295]
[1641120043047,0.41458125,47230.0,47229.0,0.34258295]
[1641120043247,0.23058125,47230.0,47229.0,1.66614166]
[1641120043448,0.41258125,47230.0,47229.0,1.66614166]
[1641120043849,0.91874514,47230.0,47229.0,0.34258295]
[1641120044757,0.73674514,47230.0,47229.0,0.34258295]